bitfinex-derivatives/quotes_BTCF0:USTF0_20210102
["timestamp","ask_amount","ask_price","bid_price","bid_amount"]
[1609553070168,0.20646407,29404.0,29402.0,0.00036558]
[1609553071469,0.18043158,29403.0,29402.0,0.00036558]
[1609553072170,1.18043158,29403.0,29402.0,0.00036558]
[1609553072570,1.18043158,29403.0,29402.0,0.03974111]
[1609553073272,1.17836438,29403.0,29402.0,0.03974111]
[1609553073870,1.0,29403.0,29402.0,0.03974111]
[1609553080283,0.20646407,29404.0,29402.0,0.03974111]
[1609553082184,1.0,29403.0,29402.0,0.03974111]
[1609553082385,1.0,29403.0,29402.0,1.83695501]
[1609553083988,0.99793296,29403.0,29402.0,0.03974111]
[1609553084189,1.38689565,29404.0,29402.0,0.03974111]
[1609553084388,0.20646407,29404.0,29402.0,0.03974111]
[1609553086391,1.20646407,29404.0,29402.0,0.03974111]
[1609553088393,0.20646407,29404.0,29402.0,0.03974111]
[1609553094102,0.20439702,29404.0,29402.0,0.03974111]
[1609553094300,1.0,29403.0,29402.0,0.03974111]
[1609553098302,0.20439702,29404.0,29402.0,0.03974111]
[1609553098504,1.0,29403.0,29402.0,0.03974111]
[1609553100405,0.20439702,29404.0,29402.0,0.03974111]
[1609553104312,0.20232997,29404.0,29403.0,0.18043158]
[1609553104611,0.20232997,29404.0,29403.0,0.22035859]
[1609553110019,0.20922997,29404.0,29403.0,0.22035859]
[1609553114331,0.20716293,29404.0,29403.0,0.22035859]
[1609553114528,1.20716293,29404.0,29403.0,0.22035859]
[1609553116532,1.38759451,29404.0,29403.0,0.22035859]
[1609553124445,0.38759451,29404.0,29403.0,0.22035859]
[1609553126549,1.38759451,29404.0,29403.0,0.22035859]
[1609553127953,5.76319451,29404.0,29403.0,0.22035859]
[1609553128356,5.76319451,29404.0,29403.0,0.03992701]
[1609553128754,5.86379451,29404.0,29402.0,0.03992907]
[1609553129055,0.00041404,29403.0,29401.0,1.72361944]
[1609553129256,0.00041404,29403.0,29401.0,1.65671944]
[1609553129957,0.00041404,29403.0,29397.0,2.03650109]
[1609553130356,5.00041404,29403.0,29398.0,0.00036606]
[1609553130556,0.18043158,29399.0,29398.0,0.00036606]
[1609553131158,0.18043158,29399.0,29395.0,0.00036608]
[1609553131559,0.18043158,29399.0,29398.0,0.00036608]
[1609553131759,0.18043158,29399.0,29396.0,0.00036608]
[1609553131958,0.18043158,29399.0,29398.0,0.00036608]
[1609553132259,0.18043158,29399.0,29397.0,0.00036608]
[1609553132458,1.18043158,29399.0,29398.0,0.00036608]
[1609553132959,1.18043158,29399.0,29395.0,0.00036608]
[1609553134359,1.0,29396.0,29395.0,0.00036608]
[1609553134559,1.18043158,29396.0,29395.0,0.00036608]
[1609553134760,1.30533158,29396.0,29395.0,0.00036608]
[1609553142369,0.30533158,29396.0,29395.0,0.00036608]
[1609553142570,5.14873158,29396.0,29390.0,0.00036614]
[1609553142770,5.14873158,29396.0,29387.0,0.18043158]
[1609553142771,5.14873158,29396.0,29395.0,0.00036614]
[1609553142971,5.14873158,29396.0,29391.0,0.00036614]
[1609553143271,5.14873158,29396.0,29388.0,0.00036614]
[1609553143672,5.14873158,29396.0,29392.0,0.00036614]
[1609553143871,5.14873158,29396.0,29389.0,0.00036614]
[1609553144071,5.14873158,29396.0,29393.0,0.00036614]
[1609553144272,5.14873158,29396.0,29390.0,0.00036614]
[1609553144672,0.18043158,29391.0,29388.0,0.00036614]
[1609553144872,0.18043158,29391.0,29387.0,0.18043158]
[1609553145073,0.18043158,29391.0,29389.0,0.00036614]
[1609553145373,0.18043158,29391.0,29388.0,0.00036614]
[1609553145674,0.18043158,29391.0,29390.0,0.00036614]
[1609553145874,0.18043158,29391.0,29389.0,0.00036614]
[1609553146275,0.18043158,29391.0,29388.0,0.00036614]
[1609553146475,0.18043158,29391.0,29390.0,0.00036614]
[1609553146675,0.18043158,29391.0,29389.0,0.00036614]
[1609553147079,0.18043158,29391.0,29390.0,0.00036612]
[1609553147480,0.18043158,29391.0,29388.0,0.00036612]
[1609553147879,0.17836356,29391.0,29390.0,0.00036612]
[1609553148080,0.17836356,29391.0,29389.0,0.00036612]
[1609553148283,0.17836356,29391.0,29390.0,0.00036612]
[1609553148682,0.17836356,29391.0,29390.0,0.1807977]
[1609553148879,0.17836356,29391.0,29390.0,0.18043158]
[1609553149080,0.17836356,29391.0,29390.0,0.1807977]
[1609553149980,0.17836356,29391.0,29390.0,0.18079768]
[1609553156189,0.17836356,29391.0,29390.0,0.22037521]
[1609553159091,0.17629561,29391.0,29390.0,0.22037521]
[1609553160193,1.1249,29396.0,29390.0,0.03994363]
[1609553160392,1.0,29392.0,29390.0,0.03994363]
[1609553160692,1.0,29392.0,29387.0,0.11464291]
[1609553160892,1.0,29392.0,29391.0,0.22037719]
[1609553162093,1.0,29392.0,29391.0,0.03994561]
[1609553162393,0.1249,29396.0,29391.0,0.03994561]
[1609553162593,0.2965,29398.0,29387.0,1.11464431]
[1609553162794,0.2965,29398.0,29394.0,0.18043158]
[1609553163396,0.2965,29398.0,29395.0,0.0399435]
[1609553163596,0.2965,29398.0,29395.0,0.0003661]
[1609553163796,0.2965,29398.0,29394.0,0.18043158]
[1609553163797,0.2965,29398.0,29396.0,0.00036607]
[1609553164098,0.2965,29398.0,29395.0,0.03994056]
[1609553164497,0.46253,29398.0,29397.0,0.00036607]
[1609553164697,0.46253,29398.0,29395.0,0.03957449]
[1609553164698,0.46253,29398.0,29396.0,0.00036607]
[1609553164897,0.18043158,29397.0,29395.0,0.03957449]
[1609553165398,0.18043158,29397.0,29395.0,0.03994057]
[1609553170005,0.18043158,29397.0,29388.0,1.03957619]
[1609553170204,0.18043158,29397.0,29396.0,0.00036609]
[1609553170404,0.18043158,29397.0,29389.0,0.03994345]
[1609553170806,0.18043158,29390.0,29389.0,0.03994345]
[1609553171206,0.32961158,29390.0,29389.0,0.03994345]
[1609553173111,0.32754364,29390.0,29389.0,0.03994345]
[1609553181323,4.60474364,29390.0,29389.0,0.03994345]
[1609553181524,4.60474364,29390.0,29387.0,0.03994732]
[1609553181723,4.60474364,29390.0,29389.0,0.00036616]
[1609553182024,4.60474364,29390.0,29388.0,0.00036618]
[1609553182224,4.6051579,29390.0,29389.0,0.0003662]
[1609553182425,5.6051579,29390.0,29389.0,0.0003662]
[1609553182625,5.60474364,29390.0,29385.0,0.0003662]
[1609553182825,5.60474364,29390.0,29389.0,0.0003662]
[1609553183025,5.60474364,29390.0,29386.0,0.0003662]
[1609553183325,5.60474364,29390.0,29385.0,0.0003662]
[1609553183525,5.60474364,29390.0,29387.0,0.00036622]
[1609553183925,1.32754364,29390.0,29385.0,0.00036622]
[1609553184126,1.32754364,29390.0,29388.0,0.00036622]
[1609553184327,1.32754364,29390.0,29386.0,0.00036622]
[1609553184525,0.32754364,29390.0,29386.0,0.00036622]
[1609553184726,0.32754364,29390.0,29385.0,0.00036622]
[1609553184927,0.32754364,29390.0,29387.0,0.0003662]
[1609553185125,0.32754364,29390.0,29386.0,0.0003662]
[1609553185528,0.32754364,29390.0,29383.0,0.0003662]
[1609553185726,0.32754364,29390.0,29387.0,0.0003662]
[1609553185926,0.32754364,29390.0,29384.0,0.0003662]
[1609553186326,4.0337,29389.0,29388.0,0.0003662]
[1609553186526,4.0337,29389.0,29385.0,0.00036622]
[1609553186727,4.0337,29389.0,29388.0,0.00036628]
[1609553187127,4.1355,29389.0,29386.0,0.00036628]
[1609553187327,4.1355,29389.0,29388.0,0.00036628]
[1609553187527,4.1355,29389.0,29387.0,0.0003663]
[1609553187927,4.1355,29389.0,29388.0,0.0003663]
[1609553188129,0.1018,29389.0,29388.0,0.0003663]
[1609553188331,0.1018,29389.0,29379.0,4.6554]
[1609553188527,1.1018,29389.0,29379.0,4.6554]
[1609553188929,1.1018,29389.0,29380.0,0.00036631]
[1609553189128,0.18043158,29381.0,29380.0,0.00036631]
[1609553189328,0.31797158,29381.0,29380.0,0.00036631]
[1609553189931,0.31797158,29381.0,29378.0,0.00036631]
[1609553190131,0.31797158,29381.0,29380.0,0.00036631]
[1609553190430,0.31797158,29381.0,29378.0,0.00036629]
[1609553190932,0.31797158,29381.0,29379.0,0.00036629]
[1609553191534,0.31797158,29381.0,29378.0,0.00036629]
[1609553191734,0.31797158,29381.0,29380.0,0.00036629]
[1609553192134,0.31797158,29381.0,29379.0,0.00036629]
[1609553192334,0.31797158,29381.0,29380.0,0.00036629]
[1609553192534,1.31797158,29381.0,29380.0,0.00036629]
[1609553192838,1.31797158,29381.0,29377.0,0.18043158]
[1609553192839,1.31797158,29381.0,29378.0,0.00036627]
[1609553193037,1.31797158,29381.0,29380.0,0.00036627]
[1609553193338,1.31797158,29381.0,29379.0,0.00036627]
[1609553193539,1.31797158,29381.0,29380.0,0.00036627]
[1609553193841,1.31797158,29381.0,29378.0,0.00036627]
[1609553194140,1.31797158,29381.0,29380.0,0.00036627]
[1609553194340,1.31797158,29381.0,29379.0,0.00036627]
[1609553194539,1.31590281,29381.0,29379.0,0.00036627]
[1609553194740,1.31590281,29381.0,29380.0,0.00036627]
[1609553195142,1.31590281,29381.0,29378.0,0.00036627]
[1609553195442,1.31590281,29381.0,29380.0,0.00036627]
[1609553195642,1.31590281,29381.0,29379.0,0.00036627]
[1609553195943,1.31590281,29381.0,29378.0,0.00036627]
[1609553196243,1.31590281,29381.0,29380.0,0.00036627]
[1609553196444,0.31590281,29381.0,29379.0,0.00036627]
[1609553196842,0.31590281,29381.0,29378.0,0.00036627]
[1609553197042,0.31590281,29381.0,29380.0,0.00036627]
[1609553197244,0.31590281,29381.0,29379.0,0.00036627]
[1609553197544,0.31590281,29381.0,29380.0,0.00036627]
[1609553198044,0.31590281,29381.0,29377.0,0.18043158]
[1609553198045,0.31590281,29381.0,29378.0,0.00036627]
[1609553198345,0.31590281,29381.0,29380.0,0.00036627]
[1609553198548,0.31590281,29381.0,29379.0,0.00036627]
[1609553198947,0.31590281,29381.0,29378.0,0.00036627]
[1609553199146,0.31590281,29381.0,29380.0,0.00036627]
[1609553199346,0.31590281,29381.0,29379.0,0.00036627]
[1609553199647,0.31590281,29381.0,29380.0,0.00036627]
[1609553200148,0.31590281,29381.0,29378.0,0.00036629]
[1609553200448,0.31590281,29381.0,29380.0,0.00036629]
[1609553200650,0.31590281,29381.0,29379.0,0.00036629]
[1609553200949,0.31590281,29381.0,29378.0,0.00036629]
[1609553201152,0.31590281,29381.0,29380.0,0.00036629]
[1609553201452,0.31590281,29381.0,29378.0,0.00036552]
[1609553201753,0.31590281,29381.0,29380.0,0.00036552]
[1609553201952,0.31590281,29381.0,29377.0,1.18043158]
[1609553201953,0.31590281,29381.0,29379.0,0.00036552]
[1609553202253,0.31590281,29381.0,29378.0,0.00036552]
[1609553202653,0.31590281,29381.0,29380.0,0.00036552]
[1609553202852,0.31590281,29381.0,29379.0,0.00036552]
[1609553203052,0.31590281,29381.0,29380.0,0.00036552]
[1609553203553,0.31590281,29381.0,29378.0,0.00036552]
[1609553203854,0.31590281,29381.0,29380.0,0.00036552]
[1609553204252,5.0728,29380.0,29379.0,0.00036552]
[1609553204454,5.0728,29380.0,29377.0,0.18043158]
[1609553204755,5.0728,29380.0,29379.0,0.00036553]
[1609553204953,5.0728,29380.0,29378.0,0.00036553]
[1609553205154,5.0728,29380.0,29379.0,0.00036553]
[1609553205654,5.0728,29380.0,29378.0,0.00036553]
[1609553206054,1.31590281,29381.0,29378.0,0.00036553]
[1609553206456,0.31590281,29381.0,29378.0,0.00036553]
[1609553209361,0.31590281,29381.0,29377.0,0.18043158]
[1609553209561,0.31590281,29381.0,29377.0,1.88253158]
[1609553210161,0.31590281,29381.0,29378.0,0.03925348]
[1609553212864,0.31383389,29381.0,29378.0,0.03925348]
[1609553213664,0.31383389,29381.0,29380.0,5.411]
[1609553213865,0.13754,29381.0,29380.0,6.411]
[1609553214065,0.00431968,29389.0,29380.0,6.45060973]
[1609553214665,0.00431968,29389.0,29381.0,0.03959626]
[1609553215068,0.18043683,29390.0,29381.0,0.03959626]
[1609553215069,0.14918,29390.0,29386.0,1.78284908]
[1609553215269,0.32961158,29390.0,29389.0,0.18043158]
[1609553215468,0.18043158,29390.0,29389.0,0.18043158]
[1609553215669,0.18043158,29390.0,29389.0,0.22002113]
[1609553215867,0.87063158,29390.0,29389.0,0.22002113]
[1609553216269,0.87063158,29390.0,29389.0,0.03958955]
[1609553216667,0.87063158,29390.0,29388.0,0.039593]
[1609553217069,0.87063158,29390.0,29387.0,0.03959331]
[1609553217269,0.87063158,29390.0,29386.0,1.78254501]
[1609553217270,0.87063158,29390.0,29389.0,0.00036533]
[1609553217469,0.87063158,29390.0,29388.0,0.00036533]
[1609553217868,0.87063158,29390.0,29387.0,0.03959427]
[1609553218069,0.87063158,29390.0,29389.0,0.00036533]
[1609553218269,0.18043158,29390.0,29388.0,0.00036533]
[1609553218468,1.18043158,29390.0,29388.0,0.00036533]
[1609553218668,1.18043158,29390.0,29389.0,0.00036533]
[1609553219069,1.18043158,29390.0,29386.0,0.03959442]
[1609553219471,0.81133158,29387.0,29386.0,0.03922909]
[1609553219870,0.81133158,29387.0,29386.0,0.03959443]
[1609553220471,0.18043158,29387.0,29386.0,1.82265402]
[1609553221371,0.18043158,29387.0,29386.0,2.0030856]
[1609553223072,0.15342,29392.0,29386.0,3.0030856]
[1609553223473,0.87723158,29393.0,29391.0,0.18043158]
[1609553223873,0.87723158,29393.0,29392.0,0.00036528]
[1609553224374,0.87723158,29393.0,29391.0,0.18043158]
[1609553224574,0.87723158,29393.0,29392.0,0.00036529]
[1609553224975,0.87723158,29393.0,29392.0,0.00073058]
[1609553225679,0.18043158,29393.0,29392.0,0.00073058]
[1609553226077,0.18043158,29393.0,29392.0,1.00073058]
[1609553227481,0.18043158,29396.0,29392.0,1.00073058]
[1609553227880,0.18043158,29396.0,29392.0,0.00073058]
[1609553228080,0.18043158,29396.0,29393.0,0.00036527]
[1609553229381,0.18043158,29396.0,29394.0,0.18043158]
[1609553229981,0.18043158,29396.0,29395.0,0.00036527]
[1609553238394,1.18043158,29396.0,29395.0,0.00036527]
[1609553238795,1.18043158,29396.0,29393.0,0.00036529]
[1609553238995,1.18043158,29396.0,29395.0,0.00036529]
[1609553239296,1.18043158,29396.0,29393.0,0.00036529]
[1609553239698,1.18043158,29396.0,29395.0,0.00036529]
[1609553239896,1.18043158,29396.0,29394.0,0.00036529]
[1609553240096,1.18043158,29396.0,29395.0,0.00036529]
[1609553240398,0.18043158,29396.0,29395.0,0.00036529]
[1609553240597,0.18043158,29396.0,29393.0,0.00036529]
[1609553240899,0.18043158,29396.0,29395.0,0.00036529]
[1609553241100,0.18043158,29396.0,29394.0,0.00036529]
[1609553241400,0.18043158,29396.0,29393.0,0.00036532]
[1609553241701,0.18043158,29396.0,29395.0,0.00036534]
[1609553241901,0.18043158,29396.0,29394.0,0.00036534]
[1609553242203,0.18043158,29396.0,29393.0,0.00036534]
[1609553242404,1.0,29395.0,29392.0,0.00036529]
[1609553242703,1.0,29395.0,29393.0,0.00036534]
[1609553245407,5.2799,29394.0,29393.0,0.00036534]
[1609553245607,5.2799,29394.0,29392.0,0.00036536]
[1609553245908,5.2799,29394.0,29393.0,0.00036536]
[1609553246509,6.2799,29394.0,29391.0,0.00036536]
[1609553246709,6.2799,29394.0,29393.0,0.00036536]
[1609553246911,6.2799,29394.0,29392.0,0.00036536]
[1609553247312,6.2799,29394.0,29393.0,0.00036536]
[1609553247511,6.2799,29394.0,29393.0,0.00036535]
[1609553247711,6.2799,29394.0,29389.0,0.03959605]
[1609553248112,6.2799,29394.0,29393.0,0.00036535]
[1609553248314,6.2799,29394.0,29390.0,0.00036535]
[1609553248513,1.0,29392.0,29389.0,0.0392307]
[1609553248815,1.0,29392.0,29391.0,0.00036536]
[1609553249014,1.0,29392.0,29389.0,0.03959606]
[1609553249215,1.15305,29392.0,29389.0,0.03959606]
[1609553249717,0.18043158,29390.0,29389.0,0.03959606]
[1609553252621,0.17836358,29390.0,29389.0,0.03959606]
[1609553253521,0.17836358,29390.0,29389.0,0.0392307]
[1609553253720,0.17836358,29390.0,29389.0,0.03959606]
[1609553254121,0.17836358,29390.0,29389.0,0.00036536]
[1609553258522,0.17836358,29390.0,29389.0,0.03959479]
[1609553260126,0.17836358,29390.0,29389.0,1.03959479]
[1609553263729,0.17629582,29390.0,29389.0,1.03959479]
[1609553266633,0.17629582,29390.0,29389.0,1.11383489]
[1609553270334,0.17629582,29390.0,29389.0,0.11383489]
[1609553270837,0.17629582,29390.0,29389.0,0.03959479]
[1609553272739,0.17629582,29390.0,29389.0,0.11383505]
[1609553273241,0.17629582,29390.0,29389.0,1.90072243]
[1609553276947,0.1742281,29390.0,29389.0,1.90072243]
[1609553285057,0.1742281,29390.0,29389.0,2.90072243]
[1609553287363,0.17216038,29390.0,29389.0,2.90072243]
[1609553293273,0.17216038,29390.0,29389.0,3.46362243]
[1609553295282,0.17216038,29390.0,29389.0,5.48952096]
[1609553297983,0.17009264,29390.0,29389.0,5.48952096]
[1609553299983,0.15305,29392.0,29389.0,5.48952096]
[1609553300484,0.15305,29392.0,29391.0,0.18043158]
[1609553300883,5.2799,29394.0,29391.0,0.18043158]
[1609553301083,5.2799,29394.0,29391.0,0.29426585]
[1609553301282,5.2799,29394.0,29392.0,0.03959252]
[1609553301784,5.2799,29394.0,29392.0,0.11383427]
[1609553302284,5.2799,29394.0,29392.0,0.03959252]
[1609553302684,0.18043158,29393.0,29392.0,0.03959252]
[1609553304292,0.18043158,29393.0,29392.0,1.82290549]
[1609553306692,0.18043158,29393.0,29392.0,0.03959252]
[1609553310196,0.17836382,29393.0,29392.0,0.03959252]
[1609553314999,4.22556382,29393.0,29392.0,0.03959252]
[1609553316501,5.22556382,29393.0,29392.0,0.03959252]
[1609553318804,5.22556382,29393.0,29390.0,0.03959457]
[1609553319206,1.17836382,29393.0,29390.0,0.03959457]
[1609553320007,1.17836382,29393.0,29389.0,0.03959475]
[1609553320207,1.17836382,29393.0,29391.0,0.03959475]
[1609553320408,1.17629588,29393.0,29390.0,0.03959471]
[1609553320607,1.0,29391.0,29390.0,0.03959471]
[1609553320809,1.0,29391.0,29389.0,1.7851723]
[1609553321008,1.13716,29391.0,29390.0,0.03959672]
[1609553322509,0.13716,29391.0,29390.0,0.03959672]
[1609553323112,0.13716,29391.0,29390.0,1.82321292]
[1609553325718,0.13716,29391.0,29390.0,1.7836162]
[1609553325916,0.13716,29391.0,29390.0,1.82318546]
[1609553326219,0.17629588,29393.0,29390.0,1.82318546]
[1609553326417,0.74979588,29393.0,29390.0,1.82318546]
[1609553328921,0.74979588,29393.0,29390.0,0.03956926]
[1609553330823,0.74979588,29393.0,29390.0,1.82211805]
[1609553331925,0.74979588,29393.0,29391.0,0.03956869]
[1609553334026,0.74979588,29393.0,29390.0,0.03957061]
[1609553336427,1.0,29392.0,29390.0,0.03957061]
[1609553336827,1.1334,29392.0,29390.0,0.03957061]
[1609553342437,0.1334,29392.0,29390.0,0.03957061]
[1609553343138,0.74979588,29393.0,29390.0,0.03957061]
[1609553343439,0.74772794,29393.0,29390.0,0.03957061]
[1609553344840,0.74772794,29393.0,29390.0,0.11378432]
[1609553345040,0.17422794,29393.0,29390.0,0.03957061]
[1609553345240,0.17422794,29393.0,29391.0,5.4596]
[1609553345440,0.17422794,29393.0,29392.0,1.0]
[1609553345643,0.17422794,29393.0,29392.0,1.03956987]
[1609553347045,0.17422794,29393.0,29392.0,1.22000145]
[1609553349650,0.17422794,29393.0,29392.0,0.22000145]
[1609553350051,0.17422794,29393.0,29392.0,1.22000145]
[1609553350651,0.17422794,29393.0,29392.0,0.22000145]
[1609553355561,0.17422794,29393.0,29392.0,0.03956987]
[1609553357263,0.17216004,29393.0,29392.0,0.03956987]
[1609553362467,0.17216004,29393.0,29391.0,0.03956967]
[1609553362667,0.17216004,29393.0,29392.0,0.03956958]
[1609553363167,0.17216004,29393.0,29391.0,0.03956958]
[1609553363568,0.17216004,29393.0,29392.0,0.03956958]
[1609553363770,0.17216004,29393.0,29392.0,4.46226958]
[1609553363969,0.17216004,29393.0,29392.0,4.4227]
[1609553364268,0.17216004,29393.0,29392.0,4.53646893]
[1609553364769,0.17216004,29393.0,29392.0,5.53646893]
[1609553365769,0.17216004,29393.0,29392.0,4.53646893]
[1609553365969,0.17216004,29393.0,29392.0,5.53646893]
[1609553369579,0.17216004,29393.0,29392.0,4.53646893]
[1609553369778,0.17009253,29393.0,29392.0,4.53646893]
[1609553370076,0.17009253,29393.0,29392.0,5.53646893]
[1609553371880,0.17009253,29393.0,29392.0,5.46226431]
[1609553372078,0.17009253,29393.0,29392.0,4.46226431]
[1609553372881,0.17009253,29393.0,29392.0,5.46226431]
[1609553373084,0.17009253,29393.0,29392.0,9.27948987]
[1609553378892,0.17009253,29393.0,29392.0,9.35368801]
[1609553385103,0.16603,29398.0,29392.0,9.35368801]
[1609553385502,4.9919,29400.0,29393.0,0.03963977]
[1609553385804,0.18043158,29394.0,29393.0,0.03963977]
[1609553386001,0.29490158,29394.0,29393.0,0.03963977]
[1609553388307,0.29283429,29394.0,29393.0,1.82379773]
[1609553388507,0.29283429,29394.0,29393.0,2.82379773]
[1609553389709,0.29283429,29394.0,29393.0,2.89809401]
[1609553390713,0.29283429,29394.0,29393.0,2.82379773]
[1609553392111,0.29283429,29394.0,29393.0,2.89809381]
[1609553397620,0.29283429,29394.0,29393.0,7.16839381]
[1609553399122,0.29283429,29394.0,29393.0,9.1945342]
[1609553399321,0.29076716,29394.0,29393.0,9.1945342]
[1609553404530,0.08405841,29394.0,29393.0,9.1945342]
[1609553404732,0.2718,29400.0,29393.0,9.1945342]
[1609553405230,0.2718,29400.0,29394.0,0.11392136]
[1609553405429,0.2718,29400.0,29395.0,1.0]
[1609553405730,0.2718,29400.0,29396.0,0.03963392]
[1609553406231,0.2718,29400.0,29399.0,0.18043158]
[1609553406831,0.2718,29400.0,29399.0,0.2200654]
[1609553407034,0.2718,29400.0,29399.0,4.1779654]
[1609553407931,0.20716293,29404.0,29399.0,4.1779654]
[1609553408331,0.20716293,29404.0,29400.0,0.03963321]
[1609553408831,0.20716293,29404.0,29403.0,3.9721]
[1609553409232,0.20716293,29404.0,29403.0,4.0117331]
[1609553410334,0.38759451,29404.0,29403.0,4.0117331]
[1609553411735,0.38759451,29404.0,29403.0,0.0396331]
[1609553412035,0.38759451,29404.0,29400.0,0.03963316]
[1609553412234,0.38759451,29404.0,29403.0,0.03963319]
[1609553412638,0.38759451,29404.0,29400.0,0.03963298]
[1609553412836,0.38759451,29404.0,29403.0,0.03963296]
[1609553413036,0.38759451,29404.0,29401.0,0.03963298]
[1609553413237,0.20716293,29404.0,29401.0,0.03963298]
[1609553413438,0.20509589,29404.0,29403.0,0.03963301]
[1609553413637,0.20509589,29404.0,29402.0,0.03963301]
[1609553413840,0.20509589,29404.0,29403.0,0.03963303]
[1609553414338,0.20509589,29404.0,29400.0,0.03963287]
[1609553414741,0.20509589,29404.0,29403.0,0.18043158]
[1609553414939,0.20509589,29404.0,29403.0,5.03913158]
[1609553415141,0.20509589,29404.0,29403.0,5.07876501]
[1609553417946,0.20509589,29404.0,29403.0,6.07876501]
[1609553419248,0.20509589,29404.0,29403.0,6.15304388]
[1609553419448,0.20509589,29404.0,29403.0,6.07876501]
[1609553419648,0.20509589,29404.0,29403.0,6.15304179]
[1609553419848,0.20509589,29404.0,29403.0,6.07876501]
[1609553420450,0.20509589,29404.0,29403.0,6.15304048]
[1609553420648,0.20509589,29404.0,29403.0,6.07876501]
[1609553421249,0.20509589,29404.0,29403.0,7.85946325]
[1609553425954,0.20302913,29404.0,29403.0,7.85946325]
[1609553433366,0.20302913,29404.0,29403.0,6.85946325]
[1609553434266,0.20302913,29404.0,29403.0,7.85946325]
[1609553435066,0.20302913,29404.0,29403.0,6.85946325]
[1609553437571,0.2009624,29404.0,29403.0,6.85946325]
[1609553437970,0.2009624,29404.0,29403.0,7.85946325]
[1609553438270,0.2009624,29404.0,29403.0,7.93373596]
[1609553439372,0.2009624,29404.0,29403.0,6.93373596]
[1609553440674,0.2009624,29404.0,29403.0,2.07503596]
[1609553440874,0.2009624,29404.0,29403.0,2.00076325]
[1609553441575,4.6681624,29404.0,29403.0,2.00076325]
[1609553442174,0.2009624,29404.0,29403.0,2.00076325]
[1609553442476,1.2009624,29404.0,29403.0,1.96149515]
[1609553442978,1.2009624,29404.0,29403.0,0.18079691]
[1609553443178,1.38139398,29404.0,29403.0,4.11889691]
[1609553443378,1.33139398,29404.0,29403.0,4.11889691]
[1609553444278,1.33139398,29404.0,29403.0,4.15837627]
[1609553444479,1.33139398,29404.0,29403.0,0.22027627]
[1609553444480,0.33139398,29404.0,29403.0,0.22027627]
[1609553448892,0.32932699,29404.0,29403.0,0.22027627]
[1609553453600,0.14889541,29404.0,29403.0,0.22027627]
[1609553459112,0.14682848,29404.0,29403.0,0.22027627]
[1609553461412,0.14682848,29404.0,29403.0,2.00262089]
[1609553463314,0.14682848,29404.0,29403.0,0.22027627]
[1609553474727,0.1447615,29404.0,29403.0,0.22027627]
[1609553486449,0.14269449,29404.0,29403.0,0.22027627]
[1609553492554,0.76219449,29404.0,29403.0,0.22027627]
[1609553493155,0.76219449,29404.0,29403.0,0.03984469]
[1609553493557,0.76219449,29404.0,29402.0,0.03984776]
[1609553493757,0.76219449,29404.0,29403.0,0.03984715]
[1609553493957,0.76219449,29404.0,29403.0,0.0003658]
[1609553494459,0.76219449,29404.0,29402.0,0.00036583]
[1609553494662,1.76219449,29404.0,29402.0,0.00036583]
[1609553494960,1.14269449,29404.0,29402.0,0.00036583]
[1609553495161,4.7616,29403.0,29402.0,0.00036583]
[1609553496461,4.7616,29403.0,29399.0,0.18043158]
[1609553496462,1.14269449,29404.0,29400.0,0.00036585]
[1609553496665,1.0,29403.0,29402.0,0.00036585]
[1609553496864,1.0,29403.0,29401.0,0.00036585]
[1609553497165,1.0,29403.0,29402.0,0.00036585]
[1609553497664,1.0,29403.0,29400.0,0.00036585]
[1609553497965,1.0,29403.0,29402.0,0.00036585]
[1609553498166,1.7859,29403.0,29401.0,0.00036585]
[1609553498467,1.7859,29403.0,29402.0,0.00036585]
[1609553498665,0.7859,29403.0,29402.0,0.00036585]
[1609553498965,0.7859,29403.0,29400.0,0.00036585]
[1609553499265,0.7859,29403.0,29402.0,0.00036585]
[1609553499466,0.7859,29403.0,29401.0,0.00036585]
[1609553499768,0.7859,29403.0,29400.0,0.00036585]
[1609553499967,0.18043158,29401.0,29396.0,7.63540593]
[1609553500267,0.18043158,29401.0,29397.0,0.00036586]
[1609553501972,0.18043158,29398.0,29397.0,0.00036586]
[1609553504977,0.18043158,29398.0,29396.0,5.82743158]
[1609553505278,0.18043158,29398.0,29397.0,0.00036604]
[1609553505777,0.81223158,29398.0,29397.0,0.00036604]
[1609553506577,0.81016398,29398.0,29397.0,0.00036604]
[1609553507883,0.81016398,29398.0,29397.0,0.03993552]
[1609553508281,0.81016398,29398.0,29397.0,0.00036604]
[1609553508481,0.81016398,29398.0,29397.0,0.03993577]
[1609553508681,0.81016398,29398.0,29397.0,0.00036604]
[1609553509181,0.81016398,29398.0,29397.0,0.03993468]
[1609553520605,0.80809652,29398.0,29397.0,0.03993468]
[1609553521809,0.6318,29398.0,29397.0,0.03993468]
[1609553522410,0.81223158,29398.0,29397.0,0.22036626]
[1609553529518,0.81223158,29398.0,29397.0,0.03993468]
[1609553533020,0.81016409,29398.0,29397.0,0.03993468]
[1609553539027,0.95161409,29398.0,29397.0,0.03993468]
[1609553543632,0.94954652,29398.0,29397.0,0.03993468]
[1609553544533,1.94954652,29398.0,29397.0,0.03993468]
[1609553544834,1.94954652,29398.0,29395.0,0.03993797]
[1609553545036,1.32188158,29398.0,29395.0,0.03993797]
[1609553545235,5.2037,29396.0,29395.0,0.03993797]
[1609553546034,5.2037,29396.0,29394.0,0.03994029]
[1609553546234,5.2037,29396.0,29395.0,0.03994094]
[1609553546434,5.2037,29396.0,29393.0,1.60111776]
[1609553546634,0.18043158,29394.0,29393.0,1.46711776]
[1609553547035,0.18084577,29394.0,29393.0,1.46748391]
[1609553547236,5.19634577,29394.0,29393.0,1.46748391]
[1609553547736,5.19634577,29394.0,29393.0,0.00036615]
[1609553548141,5.19634577,29394.0,29389.0,0.00036617]
[1609553548342,0.18084577,29394.0,29393.0,0.00036617]
[1609553548539,0.18043158,29394.0,29390.0,0.00036617]
[1609553548938,0.18043158,29394.0,29386.0,4.8081]
[1609553549137,0.18043158,29394.0,29391.0,0.00036617]
[1609553549338,0.18043158,29394.0,29387.0,0.00036617]
[1609553549542,0.18476211,29394.0,29387.0,0.00036617]
[1609553549743,4.7275,29389.0,29382.0,0.18043158]
[1609553549942,4.7275,29389.0,29388.0,0.00036617]
[1609553550140,4.7275,29389.0,29383.0,0.00036617]
[1609553550439,4.7275,29389.0,29388.0,0.00036617]
[1609553550639,4.90793158,29389.0,29384.0,0.00036619]
[1609553550941,4.90793158,29389.0,29383.0,0.00036619]
[1609553551341,4.90793158,29389.0,29385.0,0.00036619]
[1609553551541,4.90793158,29389.0,29384.0,0.00036619]
[1609553551742,4.90793158,29389.0,29386.0,0.00036619]
[1609553551941,0.18043158,29389.0,29385.0,0.00036621]
[1609553552342,0.28333158,29389.0,29383.0,0.00036621]
[1609553552543,4.1516,29384.0,29382.0,0.18043158]
[1609553552743,4.47418158,29384.0,29382.0,0.18043158]
[1609553553144,4.47418158,29384.0,29383.0,0.00036624]
[1609553554744,4.47418158,29384.0,29382.0,0.18043158]